bitfinex-derivatives/quotes_ETHF0:USTF0_20210111
["timestamp","ask_amount","ask_price","bid_price","bid_amount"]
[1610350555453,4.00959,1062.0,1061.8,4.00959]
[1610350555654,1.5226,1062.5,1061.8,4.00959]
[1610350556356,1.5226,1062.5,1061.9,1.43414254]
[1610350557454,1.5226,1062.5,1062.1,4.00959]
[1610350558757,36.1396,1066.9,1062.1,4.00959]
[1610350558958,68.979,1063.8,1062.1,4.00959]
[1610350559158,70.9531,1063.8,1062.2,1.43415686]
[1610350559763,1.5556,1062.6,1062.2,1.43415686]
[1610350561570,1.5556,1062.6,1062.4,4.00959]
[1610350563172,70.9531,1063.8,1062.5,1.4339295]
[1610350563571,4.00959,1063.5,1063.2,4.00959]
[1610350563771,1.8904,1063.5,1063.2,4.00959]
[1610350564571,1.8904,1063.5,1063.3,1.43364765]
[1610350565572,5.89999,1063.5,1063.3,1.43364765]
[1610350565773,1.8904,1063.5,1063.3,1.43364765]
[1610350567375,1.8904,1063.5,1062.3,1.43315147]
[1610350567577,4.00959,1063.7,1063.3,4.00959]
[1610350567775,4.00959,1063.7,1063.1,2.1944]
[1610350567976,4.00959,1063.7,1062.8,2.0358]
[1610350568776,4.00959,1063.7,1062.9,1.43310022]
[1610350569476,4.00959,1063.7,1063.2,4.00959]
[1610350569876,4.00959,1063.7,1063.2,5.51579]
[1610350570277,4.00959,1063.7,1063.3,1.43280734]
[1610350571580,2.4469,1064.1,1063.6,4.00959]
[1610350572786,6.3153,1069.5,1063.6,6.47119]
[1610350572982,30.0,1069.4,1063.7,1.43240877]
[1610350573182,37.9903,1069.4,1063.7,1.43240877]
[1610350573582,37.9903,1069.4,1064.6,4.00959]
[1610350573782,1.8622,1064.9,1064.6,4.00959]
[1610350577188,1.8622,1064.9,1063.6,2.4616]
[1610350577787,1.8622,1064.9,1063.1,1.8834]
[1610350577988,1.8622,1064.9,1062.8,2.0358]
[1610350578190,1.8622,1064.9,1062.8,32.0358]
[1610350578489,1.8622,1064.9,1063.2,3.05203388]
[1610350578688,41.3953,1069.4,1063.2,3.05203388]
[1610350578889,37.9903,1069.4,1063.2,3.05203388]
[1610350579092,7.9903,1069.4,1063.2,3.05203388]
[1610350579289,37.9903,1069.4,1063.2,3.05203388]
[1610350579491,4.00959,1064.9,1064.6,4.00959]
[1610350580091,6.24069,1064.9,1064.6,4.00959]
[1610350580292,2.2311,1064.9,1064.6,4.00959]
[1610350580693,2.2311,1064.9,1063.3,1.43142291]
[1610350581293,2.2311,1064.9,1063.2,1.6201]
[1610350581493,4.00959,1064.8,1064.6,4.00959]
[1610350581894,2.2311,1064.9,1064.6,4.00959]
[1610350582793,7.9903,1069.4,1064.2,2.4186]
[1610350583002,30.0,1069.3,1064.2,2.4186]
[1610350583598,4.00959,1064.3,1064.2,2.4186]
[1610350583798,4.00959,1064.3,1063.7,2.4701]
[1610350584399,2.0358,1064.7,1063.7,2.4701]
[1610350585501,2.0358,1064.7,1063.5,4.00959]
[1610350585502,2.0358,1064.7,1064.6,4.00959]
[1610350586604,2.0358,1064.7,1063.8,1.43113944]
[1610350587407,2.0358,1064.7,1064.6,1.43066536]
[1610350587605,2.0358,1064.7,1064.6,5.44025536]
[1610350587807,2.0358,1064.7,1064.6,1.43066536]
[1610350588908,5.9426,1068.8,1063.6,1.43059999]
[1610350589308,5.9426,1068.8,1063.5,1.8409]
[1610350589509,4.00959,1065.5,1065.3,4.00959]
[1610350589711,5.52669,1065.5,1065.3,4.00959]
[1610350589910,5.52669,1065.5,1063.5,1.8409]
[1610350590110,5.52669,1065.5,1063.6,1.4303936]
[1610350590311,1.5171,1065.5,1063.6,1.4303936]
[1610350591312,6.20308719,1068.7,1063.6,1.4303936]
[1610350591512,4.00959,1065.2,1064.9,4.00959]
[1610350591712,5.9426,1068.8,1064.9,4.00959]
[1610350592113,5.9426,1068.8,1064.9,5.63249]
[1610350592814,6.1991117,1068.7,1065.0,1.42920632]
[1610350593016,7.7655117,1068.7,1065.0,1.42920632]
[1610350593614,4.00959,1065.6,1065.2,4.00959]
[1610350594216,2.3153,1065.8,1065.2,4.00959]
[1610350595619,4.00959,1065.7,1065.3,1.42887255]
[1610350596922,4.00959,1065.7,1064.4,1.42912707]
[1610350597722,4.00959,1064.7,1064.6,4.00959]
[1610350597923,4.00959,1064.7,1064.4,1.42912707]
[1610350598923,2.2251,1065.1,1064.4,1.42912707]
[1610350599123,1.7905,1064.7,1064.4,1.42912707]
[1610350599525,1.7905,1064.7,1063.6,1.4300216]
[1610350599727,4.00959,1064.5,1064.3,4.00959]
[1610350600928,4.00959,1064.5,1064.4,1.43012013]
[1610350601129,1.7905,1064.7,1064.4,1.43012013]
[1610350601629,4.00959,1064.5,1064.4,1.43012013]
[1610350602327,4.00959,1064.5,1064.2,1.43036245]
[1610350603729,4.00959,1064.3,1064.2,1.43036245]
[1610350604131,5.96849,1064.3,1064.2,1.43036245]
[1610350604630,1.9589,1064.3,1064.2,1.43036245]
[1610350605531,1.7905,1064.7,1064.2,1.43036245]
[1610350605932,4.00959,1064.9,1064.2,1.43036245]
[1610350606332,2.2251,1065.1,1064.2,1.43036245]
[1610350606733,2.3153,1065.8,1064.2,1.43036245]
[1610350606933,71.4721,1066.2,1064.2,1.43036245]
[1610350607134,71.4721,1066.2,1064.2,3.04446245]
[1610350608333,71.4721,1066.2,1064.2,33.04446245]
[1610350608934,71.4721,1066.2,1064.3,1.4293323]
[1610350609336,74.8446,1066.3,1064.3,1.4293323]
[1610350609735,4.00959,1065.3,1065.1,4.00959]
[1610350610137,6.30159,1065.3,1064.3,1.4293323]
[1610350610635,2.292,1065.3,1064.3,1.4293323]
[1610350611036,1.5077,1065.6,1064.3,1.4293323]
[1610350611635,1.5077,1065.6,1065.5,4.00959]
[1610350613039,1.5077,1065.6,1065.5,5.43785772]
[1610350615039,74.8446,1066.3,1065.5,5.43785772]
[1610350615239,55.6736,1067.4,1065.5,5.43785772]
[1610350615639,55.6736,1067.4,1066.2,4.00959]
[1610350617542,55.6736,1067.4,1066.3,1.42804609]
[1610350617743,4.00959,1066.6,1066.5,4.00959]
[1610350618045,5.72399,1066.6,1066.5,4.00959]
[1610350618245,1.7144,1066.6,1066.5,4.00959]
[1610350618847,1.7144,1066.6,1066.5,5.43697397]
[1610350619245,1.7144,1066.6,1066.5,35.43697397]
[1610350619445,2.0513,1067.1,1066.5,35.43697397]
[1610350619647,2.0513,1067.1,1067.0,4.00959]
[1610350620446,55.6736,1067.4,1067.0,4.00959]
[1610350620947,55.6736,1067.4,1067.1,30.0]
[1610350621147,55.6736,1067.4,1067.1,32.475]
[1610350621549,55.6736,1067.4,1067.1,33.90071131]
[1610350621749,55.6736,1067.4,1067.3,4.00959]
[1610350622848,55.6736,1067.4,1067.3,5.43504185]
[1610350623452,4.00959,1069.1,1067.3,5.43504185]
[1610350623650,4.00959,1068.4,1068.1,4.00959]
[1610350623850,4.00959,1068.4,1067.3,1.42545185]
[1610350624052,5.63029,1068.4,1067.3,1.42545185]
[1610350624252,5.63029,1068.4,1067.4,1.42575277]
[1610350624652,5.63029,1068.4,1067.4,3.89305277]
[1610350624853,1.6207,1068.4,1067.4,3.89305277]
[1610350625454,1.9159,1069.1,1067.4,3.89305277]
[1610350625655,1.9159,1069.1,1068.7,4.00959]
[1610350627457,65.9901,1069.7,1068.7,6.10509]
[1610350627658,65.9901,1069.7,1069.6,4.00959]
[1610350628461,59.8424,1070.9,1069.6,4.00959]
[1610350629058,59.8424,1070.9,1069.6,5.77129]
[1610350629662,59.8424,1070.9,1070.8,4.00959]
[1610350629861,59.8424,1070.9,1070.8,5.92239]
[1610350631562,59.8424,1070.9,1070.0,1.9486]
[1610350631764,59.8424,1070.9,1070.4,4.00959]
[1610350632563,59.8424,1070.9,1069.3,1.7384]
[1610350633863,59.8424,1070.9,1070.8,4.00959]
[1610350634063,2.2506,1071.0,1070.8,4.00959]
[1610350634664,6.3791,1077.8,1070.8,4.00959]
[1610350634866,30.0,1077.7,1070.8,4.00959]
[1610350635065,31.9429,1077.7,1070.8,4.00959]
[1610350635465,38.02210863,1077.7,1070.8,4.00959]
[1610350635865,4.00959,1071.3,1070.8,4.00959]
[1610350636065,6.00209,1071.3,1069.8,1.657]
[1610350637065,1.9925,1071.3,1069.8,1.657]
[1610350637766,4.00959,1071.2,1069.8,1.657]
[1610350637966,1.9925,1071.3,1069.8,1.657]
[1610350638166,1.9925,1071.3,1069.9,1.42157133]
[1610350638566,6.3545,1075.6,1069.9,1.42157133]
[1610350639366,62.3572,1073.1,1070.2,67.4071]
[1610350639567,187.1702,1074.3,1069.9,1.42157133]
[1610350639768,4.00959,1072.1,1071.8,4.00959]
[1610350639968,189.0929,1074.3,1071.8,4.00959]
[1610350640869,189.0929,1074.3,1071.0,2.3196]
[1610350641271,189.0929,1074.3,1069.8,1.657]
[1610350641470,189.0929,1074.3,1069.3,31.7384]
[1610350641670,189.0929,1074.3,1069.4,30.0]
[1610350641870,189.0929,1074.3,1071.3,4.00959]
[1610350643373,8.68,1074.2,1071.8,9.8865]
[1610350643775,4.00959,1072.9,1072.1,4.00959]
[1610350644175,5.77609,1072.9,1072.1,4.00959]
[1610350645876,5.77609,1072.9,1072.8,4.00959]
[1610350646278,1.7665,1072.9,1072.8,4.00959]
[1610350647478,1.7665,1072.9,1071.8,9.8865]
[1610350647880,5.77609,1072.9,1072.8,4.00959]
[1610350648081,5.77609,1072.9,1071.8,9.8865]
[1610350648880,1.7665,1072.9,1071.8,9.8865]
[1610350649080,8.68,1074.2,1071.8,9.8865]
[1610350649280,8.68,1074.2,1071.9,1.42002002]
[1610350649883,5.98869,1072.6,1071.9,1.42002002]
[1610350650283,1.9791,1072.6,1071.9,1.42002002]
[1610350651084,1.9267,1073.0,1071.9,3.45972002]
[1610350651784,1.9267,1073.0,1072.9,4.00959]
[1610350652584,8.68,1074.2,1072.9,4.00959]
[1610350652985,1.9227,1074.3,1072.9,4.00959]
[1610350653187,6.1876,1077.6,1072.9,4.00959]
[1610350653787,6.1876,1077.6,1074.6,4.00959]
[1610350653987,6.1876,1077.6,1072.2,1.9571]
[1610350654787,6.06831769,1077.5,1072.3,1.41843555]
[1610350655790,6.06831769,1077.5,1074.5,4.00959]
[1610350655990,6.06831769,1077.5,1072.3,1.41843555]
[1610350656192,6.06831769,1077.5,1072.6,2.245]
[1610350657593,58.71261769,1077.5,1073.3,75.3777]
[1610350657793,4.00959,1074.1,1073.8,4.00959]
[1610350658195,5.74149,1074.1,1073.8,4.00959]
[1610350658393,5.74149,1074.1,1073.3,75.3777]
[1610350659798,4.00959,1073.5,1073.4,4.00959]
[1610350659996,5.54269,1073.5,1073.3,75.3777]
[1610350662300,5.54269,1073.5,1072.6,57.0805]
[1610350662499,1.5331,1073.5,1072.6,57.0805]
[1610350663100,1.5331,1073.5,1072.7,1.4185662]
[1610350663801,4.00959,1073.2,1072.9,4.00959]
[1610350664002,2.4285,1073.2,1072.9,4.00959]
[1610350665899,2.4285,1073.2,1073.1,4.00959]
[1610350666301,1.5331,1073.5,1073.1,4.00959]
[1610350666502,1.7319,1074.1,1073.1,4.00959]
[1610350666901,57.5498,1075.2,1073.1,4.00959]
[1610350667803,57.5498,1075.2,1073.7,4.00959]
[1610350668001,57.5498,1075.2,1073.2,1.41779218]
[1610350668202,59.1445,1075.2,1073.2,1.41779218]
[1610350669205,59.1445,1075.2,1072.7,1.41777557]
[1610350669403,1.5947,1075.2,1073.1,74.1976]
[1610350669804,4.00959,1074.8,1074.4,4.00959]
[1610350670005,4.00959,1074.8,1073.1,74.1976]
[1610350670207,5.60279,1074.8,1073.1,74.1976]
[1610350671805,1.5932,1074.8,1074.4,4.00959]
[1610350672006,1.5932,1074.8,1073.2,1.41723218]
[1610350673808,1.5932,1074.8,1074.3,4.00959]
[1610350674708,1.5932,1074.8,1074.4,1.41688874]
[1610350675210,1.5947,1075.2,1074.4,1.41688874]
[1610350675410,75.3827,1076.3,1074.4,1.41688874]
[1610350676010,4.00959,1074.6,1074.4,1.41688874]
[1610350676211,5.99379,1074.6,1074.1,4.00959]
[1610350678414,1.9842,1074.6,1074.1,4.00959]
[1610350678914,1.9842,1074.6,1074.2,1.41677401]
[1610350679916,4.00959,1074.9,1074.5,4.00959]
[1610350680715,75.3827,1076.3,1074.5,4.00959]
[1610350681015,5.817,1076.6,1074.5,4.00959]
[1610350681615,0.22784364,1079.7,1074.5,4.00959]
[1610350681816,0.22784364,1079.7,1074.6,1.41595678]
[1610350682015,4.00959,1075.4,1075.3,4.00959]
[1610350682214,5.67659,1075.4,1074.6,1.41595678]
[1610350683015,5.67659,1075.4,1074.2,1.41565564]
[1610350683915,5.67659,1075.4,1075.3,4.00959]
[1610350684517,5.67659,1075.4,1074.2,1.41565564]
[1610350686019,1.667,1075.4,1075.2,4.00959]
[1610350686620,1.667,1075.4,1074.2,1.41565564]
[1610350686820,1.667,1075.4,1074.4,2.4865]
[1610350687220,0.22784364,1079.7,1074.4,2.4865]
[1610350687420,1.6761,1075.6,1074.4,2.4865]
[1610350687922,4.00959,1075.1,1074.7,4.00959]
[1610350688922,4.00959,1075.1,1074.8,1.41560351]
[1610350689923,4.00959,1074.9,1074.8,1.41560351]
[1610350690123,6.33679,1074.9,1074.8,1.41560351]
[1610350690323,6.33679,1074.9,1074.2,1.41616143]
[1610350691524,6.33679,1074.9,1073.6,1.41695368]
[1610350691925,4.00959,1073.7,1073.6,1.41695368]
[1610350692326,5.84139,1073.7,1073.6,1.41695368]
[1610350692525,5.84139,1073.7,1073.5,35.85015368]
[1610350692725,5.84139,1073.7,1070.9,2.44251619]
[1610350692926,5.84139,1073.7,1070.8,2.44612534]
[1610350693127,6.0735,1073.6,1070.8,2.44612534]
[1610350693326,6.0735,1073.6,1070.7,2.44723404]
[1610350693726,11.9323,1073.6,1070.4,2.45184029]
[1610350693925,11.9323,1073.6,1069.9,3.4325764]
[1610350693926,4.00959,1070.8,1070.1,5.86155957]
[1610350694126,4.00959,1070.8,1070.1,2.45655957]
[1610350694327,1.8413,1071.6,1070.5,1.41896156]
[1610350694728,1.8413,1071.6,1070.5,2.95896156]
[1610350695529,11.9323,1073.6,1070.5,2.95896156]
[1610350695728,11.9323,1073.6,1070.6,1.4190521]
[1610350695927,4.00959,1071.6,1071.5,4.00959]
[1610350696326,1.9695,1071.9,1071.5,4.00959]
[1610350697127,5.8588,1073.6,1071.6,1.41909814]
[1610350697329,1.8318,1073.7,1071.6,1.41909814]
[1610350697528,2.3272,1074.9,1071.6,1.41909814]
[1610350697728,72.9786,1075.6,1072.0,70.5227]
[1610350697929,72.9786,1075.6,1073.2,4.00959]
[1610350699129,72.9786,1075.6,1073.2,5.79759]
[1610350699329,1.6761,1075.6,1073.2,5.79759]
[1610350699729,54.828,1076.5,1073.2,5.79759]
[1610350699928,4.00959,1074.7,1074.0,4.00959]
[1610350700530,2.1461,1075.0,1074.0,4.00959]
[1610350700731,2.1461,1075.0,1074.0,5.66899]
[1610350701332,54.828,1076.5,1074.0,5.66899]
[1610350701532,54.828,1076.5,1074.1,1.41621546]
[1610350701934,4.00959,1074.6,1074.3,4.00959]
[1610350702133,4.00959,1074.6,1074.1,1.41621546]
[1610350702334,2.1924,1075.7,1074.1,1.41621546]
[1610350704036,4.00959,1074.9,1074.5,4.00959]
[1610350704436,4.00959,1074.9,1074.1,1.41621546]
[1610350705236,6.43809,1074.9,1074.1,1.41621546]
[1610350706041,4.00959,1074.2,1074.1,1.41621546]
[1610350706941,4.00959,1074.2,1073.3,1.4167801]
[1610350707948,2.203,1074.3,1073.6,4.00959]
[1610350708741,2.203,1074.3,1073.2,1.41700177]
[1610350709945,2.203,1074.3,1074.1,4.00959]
[1610350710144,77.4448,1075.1,1073.2,1.41700177]
[1610350710343,77.4448,1075.1,1073.2,3.03400177]
[1610350711245,77.4448,1075.1,1073.3,1.41715532]
[1610350713553,77.4448,1075.1,1072.6,72.2579]
[1610350713950,4.00959,1072.7,1072.6,76.26749]
[1610350714151,1.6473,1072.7,1072.6,76.26749]
[1610350715151,2.1495,1074.0,1072.6,77.68536811]
[1610350715352,2.1495,1074.0,1072.6,80.06276811]
[1610350715953,4.00959,1073.3,1072.8,4.00959]
[1610350716551,4.00959,1073.3,1072.6,76.05317811]
[1610350716752,4.00959,1073.3,1072.7,1.41766116]
[1610350717954,4.00959,1072.8,1072.7,1.41766116]
[1610350718755,5.53319,1072.8,1072.7,1.41766116]
[1610350719452,5.53319,1072.8,1072.4,1.41855871]
[1610350720054,4.00959,1072.5,1072.4,1.41855871]
[1610350720253,6.04399,1072.5,1072.4,1.41855871]
[1610350720852,6.04399,1072.5,1071.9,1.41882093]
[1610350722054,6.04399,1072.5,1072.3,4.00959]
[1610350722453,2.0344,1072.5,1072.3,4.00959]
[1610350722954,2.0344,1072.5,1071.9,1.41882093]
[1610350723553,2.0344,1072.5,1072.4,1.41861416]
[1610350725053,2.0344,1072.5,1072.1,1.41895583]
[1610350725454,1.5236,1072.8,1072.1,1.41895583]
[1610350725655,1.8106,1073.2,1072.1,1.41895583]
[1610350725855,1.6694,1073.5,1072.1,1.41895583]
[1610350726055,4.00959,1072.4,1072.2,4.00959]
[1610350726256,6.42929,1072.4,1071.0,1.41923112]
[1610350728055,4.00959,1071.6,1071.4,4.00959]
[1610350728256,4.00959,1071.6,1071.0,1.41923112]
[1610350728657,1.6826,1072.1,1071.0,1.41923112]
[1610350730059,1.6826,1072.1,1071.3,4.00959]
[1610350731661,2.4197,1072.4,1071.3,4.00959]
[1610350731860,64.9188,1072.8,1071.4,1.41890076]
[1610350732059,4.00959,1071.9,1071.8,4.00959]
[1610350732261,4.00959,1071.9,1071.4,1.41890076]
[1610350733263,4.00959,1071.9,1071.3,1.41887661]
[1610350733663,6.11349,1071.9,1071.3,1.41887661]
[1610350734064,4.00959,1071.4,1071.3,1.41887661]
[1610350734265,5.57489,1071.4,1071.3,1.41887661]
[1610350734664,5.57489,1071.4,1070.2,4.00959]
[1610350735965,5.57489,1071.4,1070.3,1.42003449]
[1610350736167,1.5653,1071.4,1070.7,4.00959]
[1610350736367,1.5653,1071.4,1070.3,1.42003449]
[1610350737466,1.5653,1071.4,1070.2,1.42007882]
[1610350738066,4.00959,1070.9,1070.6,4.00959]
[1610350738467,1.6479,1071.0,1070.6,4.00959]
[1610350738766,1.6479,1071.0,1070.7,1.41984602]
[1610350739370,0.25,1071.0,1070.7,1.41984602]
[1610350740166,0.25,1071.0,1070.9,4.00959]
[1610350740365,0.25,1071.0,1070.7,1.41984602]
[1610350741466,0.25,1071.0,1070.3,2.3032]
[1610350741467,0.25,1071.0,1070.4,1.41955778]
[1610350742267,0.25,1071.0,1070.7,4.00959]
[1610350744270,0.25,1071.0,1070.9,6.36989]
[1610350744475,69.7392,1071.8,1070.9,6.36989]
[1610350745473,69.7392,1071.8,1071.0,1.41808735]
[1610350746272,69.7392,1071.8,1071.7,4.00959]
[1610350746473,69.7392,1071.8,1070.5,1.98681809]
[1610350746674,1.8016,1073.1,1070.7,67.5972]
[1610350746872,1.8016,1073.1,1070.7,69.7442]
[1610350747274,1.8016,1073.1,1071.1,3.22652364]
[1610350748274,4.00959,1072.4,1071.8,4.00959]
[1610350748475,5.88899,1072.4,1071.8,4.00959]
[1610350749677,4.00959,1072.4,1071.8,4.00959]
[1610350749876,4.00959,1072.4,1071.9,1.41828165]
[1610350750276,4.00959,1072.0,1071.9,1.41828165]
[1610350751277,4.00959,1072.0,1071.2,1.41882484]
[1610350752280,4.00959,1071.3,1071.2,1.41882484]
[1610350752478,6.40619,1071.3,1070.9,1.41971412]
[1610350753879,6.40619,1071.3,1070.8,1.42002108]
[1610350754279,5.85079,1070.9,1070.8,1.42002108]
[1610350757483,1.8412,1070.9,1070.8,1.42002108]
[1610350757881,1.8412,1070.9,1069.1,2.46049846]
[1610350757882,1.8412,1070.9,1069.2,2.45707397]
[1610350758282,1.8412,1070.9,1070.7,4.00959]
[1610350759082,2.3966,1071.3,1070.7,4.00959]
[1610350759281,2.054,1072.1,1070.8,1.42026185]
[1610350759683,1.822,1072.4,1070.8,1.42026185]
[1610350759882,6.3868,1077.7,1070.8,1.42026185]
[1610350760084,2.0,1970.0,1070.8,1.42026185]
[1610350760282,4.00959,1071.3,1070.9,4.00959]
[1610350760483,4.00959,1071.3,1070.8,1.42026185]
[1610350761381,1.8002,1071.6,1070.8,1.42026185]
[1610350762082,1.8002,1071.6,1070.6,1.41981354]
[1610350762283,4.00959,1071.4,1071.1,4.00959]
[1610350762482,4.00959,1071.4,1070.6,1.41981354]
[1610350764283,1.8002,1071.6,1070.6,1.41981354]
[1610350764684,1.8002,1071.6,1070.5,1.5815]
[1610350765485,1.6762,1071.6,1070.5,1.5815]
[1610350765684,1.6762,1071.6,1069.7,1.41984426]
[1610350765984,1.6762,1071.6,1070.6,1.4204333]
[1610350766284,4.00959,1070.7,1070.6,1.4204333]
[1610350766486,5.91349,1070.7,1070.6,1.4204333]
[1610350767486,5.91349,1070.7,1069.4,1.42094505]
[1610350768289,4.00959,1069.8,1069.4,1.42094505]
[1610350770294,4.00959,1069.5,1069.4,1.42094505]
[1610350770495,6.47459,1069.5,1069.4,1.42094505]
[1610350771295,6.47459,1069.5,1068.4,1.42161913]
[1610350772298,4.00959,1068.5,1068.4,1.42161913]
[1610350773100,4.00959,1068.5,1068.0,1.42253291]
[1610350773699,1.8558,1068.7,1068.0,1.42253291]
[1610350774299,4.00959,1068.1,1067.4,5.4322806]
[1610350774499,5.78479,1068.1,1067.4,5.4322806]
[1610350774699,1.7752,1068.1,1067.4,5.4322806]
[1610350775700,1.7752,1068.1,1067.5,1.42298259]
[1610350777000,1.7752,1068.1,1067.3,2.47857761]
[1610350777001,1.7752,1068.1,1067.4,1.42293103]
[1610350778404,4.00959,1067.5,1067.3,1.42280558]
[1610350779605,4.00959,1067.5,1066.7,66.1614]
[1610350780406,2.3979,1067.7,1066.7,66.1614]
[1610350780407,4.00959,1066.8,1066.7,66.1614]
[1610350780605,5.94239,1066.8,1066.7,66.1614]
[1610350781006,5.94239,1066.8,1066.7,67.58628633]
[1610350782206,1.9328,1066.8,1066.7,67.58628633]
[1610350782405,1.9328,1066.8,1066.7,71.59587633]
[1610350782806,1.9328,1066.8,1066.7,67.58628633]
[1610350784309,1.9328,1066.8,1066.7,5.43447633]
[1610350785409,2.1026,1067.1,1066.7,5.43447633]
[1610350786210,2.1026,1067.1,1066.7,7.70887633]
[1610350786410,2.3979,1067.7,1067.0,4.00959]
[1610350786610,68.4988,1067.9,1067.0,4.00959]
[1610350787010,68.4988,1067.9,1067.0,5.81209]
[1610350787910,68.4988,1067.9,1067.1,1.42324941]
[1610350788309,4.00959,1067.8,1067.7,4.00959]
[1610350788711,4.00959,1067.8,1067.1,1.42324941]
[1610350789111,68.4988,1067.9,1067.1,1.42324941]
[1610350789310,1.6962,1068.0,1067.7,1.42337982]
[1610350789711,78.1873,1068.8,1067.7,1.42337982]
[1610350790112,78.1873,1068.8,1067.7,3.11427982]
[1610350790712,78.1873,1068.8,1067.7,1.6909]
[1610350792013,78.1873,1068.8,1067.8,1.42287163]
[1610350792313,82.19689,1068.8,1068.5,4.00959]
[1610350792513,82.19689,1068.8,1067.8,1.42287163]
[1610350792715,83.88159,1068.8,1067.8,1.42287163]
[1610350793616,5.69429,1068.8,1067.8,1.42287163]
[1610350794416,1.6847,1068.8,1067.8,1.42287163]
[1610350795215,1.6847,1068.8,1067.4,1.42281188]
[1610350795618,1.6847,1068.8,1067.4,31.42281188]
[1610350795819,1.6847,1068.8,1067.5,2.39503018]
[1610350796017,2.1137,1069.5,1067.5,2.39503018]
[1610350796219,2.1137,1069.5,1067.6,33.91357014]
[1610350796417,2.1137,1069.5,1069.3,4.00959]
[1610350797420,4.00959,1069.8,1069.3,4.00959]
[1610350797820,4.00959,1069.8,1069.4,1.42151867]
[1610350798322,4.00959,1069.8,1069.5,4.00959]
[1610350798824,4.00959,1069.8,1069.4,1.42151867]
[1610350799224,5.83039,1069.8,1069.6,1.42149637]
[1610350800624,5.83039,1069.8,1068.5,1.42177081]
[1610350802325,4.00959,1068.6,1068.5,1.42177081]
[1610350803126,2.0478,1069.3,1068.5,1.42177081]
[1610350805229,4.00959,1069.4,1068.5,1.42177081]
[1610350806533,4.00959,1069.4,1068.6,4.00959]
[1610350806935,1.8208,1069.8,1068.6,4.00959]
[1610350807134,5.9539,1071.4,1068.6,4.00959]
[1610350807335,5.9539,1071.4,1068.7,1.42168674]
[1610350808336,4.00959,1069.1,1068.9,4.00959]
[1610350808540,4.00959,1069.1,1068.7,1.42168674]
[1610350810542,4.00959,1068.8,1068.6,1.42224991]
[1610350811740,4.00959,1068.8,1068.0,1.42230571]
[1610350812141,2.3611,1068.9,1068.0,1.42230571]
[1610350812441,2.3611,1068.9,1068.8,4.00959]
[1610350813241,2.3611,1068.9,1068.8,5.43166936]
[1610350813441,2.3611,1068.9,1068.8,1.42207936]
[1610350814444,6.37069,1068.9,1068.8,1.42207936]
[1610350814642,6.37069,1068.9,1068.0,1.42247369]
[1610350815942,6.37069,1068.9,1067.7,1.42275303]
[1610350816543,4.00959,1067.8,1067.7,1.42275303]
[1610350817347,4.00959,1067.8,1067.4,1.42362044]
[1610350818545,6.00089,1067.5,1067.3,25.97102044]
[1610350818745,6.00089,1067.5,1065.8,2.40051859]
[1610350818945,6.00089,1067.5,1065.5,2.41383703]
[1610350819346,78.6427,1066.5,1065.2,2.41842768]
[1610350819548,81.0491,1066.5,1064.8,8.98560634]
[1610350819948,81.0491,1066.5,1065.6,1.42527067]
[1610350820147,81.0491,1066.5,1064.8,6.078]
[1610350820548,5.63279,1064.9,1064.8,6.078]
[1610350820747,1.6232,1064.9,1064.8,6.078]
[1610350821547,1.6232,1064.9,1064.8,7.50489514]
[1610350822448,1.6232,1064.9,1064.8,11.51448514]
[1610350823849,1.5354,1065.2,1064.8,11.51448514]
[1610350824049,1.5354,1065.2,1064.8,13.57798514]
[1610350824549,1.5354,1065.2,1065.1,4.00959]
[1610350824950,4.00959,1066.3,1065.1,4.00959]
[1610350825748,4.00959,1066.3,1065.1,5.43563927]
[1610350825949,4.00959,1066.3,1065.1,7.09923927]
[1610350826550,4.00959,1066.3,1066.0,4.00959]
[1610350827152,2.4064,1066.5,1066.0,4.00959]
[1610350827454,58.591,1066.7,1066.0,4.00959]
[1610350828553,4.00959,1067.7,1066.6,4.00959]
[1610350828753,30.0,1068.5,1066.6,4.00959]
[1610350829354,30.0,1068.5,1066.6,6.43469]
[1610350829753,30.0,1068.5,1066.7,1.42369179]
[1610350830554,5.81679,1067.4,1066.7,1.42369179]
[1610350831154,1.8072,1067.4,1066.7,1.42369179]
[1610350832557,4.00959,1066.8,1066.7,1.42369179]
[1610350832756,6.39739,1066.8,1066.1,1.42461105]
[1610350834560,4.00959,1066.2,1064.8,2.89271379]
[1610350834759,4.00959,1066.2,1064.6,2.89401263]
[1610350835162,4.00959,1066.2,1064.5,2.89370975]
[1610350835360,4.00959,1066.2,1064.9,1.4260796]
[1610350836463,4.00959,1065.0,1064.9,1.4260796]
[1610350836661,2.0417,1065.0,1064.9,1.4260796]
[1610350836861,2.0417,1065.0,1064.8,4.00959]
[1610350837461,1.9216,1065.8,1064.8,4.00959]
[1610350837662,1.9216,1065.8,1064.8,6.04419]
[1610350837861,1.9216,1065.8,1065.0,2.85329475]
[1610350838063,1.9216,1065.8,1065.1,30.0]
[1610350838260,1.9216,1065.8,1065.1,32.84848475]
[1610350838461,2.3878,1066.8,1065.7,4.00959]
[1610350838661,1.8072,1067.4,1065.7,6.47399]
[1610350838860,4.00959,1068.0,1065.7,6.47399]
[1610350839262,30.0,1068.5,1065.7,6.47399]
[1610350839463,30.0,1068.5,1066.0,2.35890453]
[1610350839662,30.0,1068.5,1066.0,4.47750453]
[1610350839862,30.0,1068.5,1066.2,2.35313454]
[1610350840062,30.0,1068.5,1066.1,2.81810955]
[1610350840264,32.2433,1068.5,1066.1,32.81810955]
[1610350840462,32.2433,1068.5,1068.0,4.00959]
[1610350842264,32.2433,1068.5,1068.1,1.42335]
[1610350842465,32.2433,1068.5,1068.4,4.00959]
[1610350843666,32.2433,1068.5,1068.4,5.43280393]
[1610350844466,32.2433,1068.5,1068.4,1.42321393]
[1610350846367,32.2433,1068.5,1068.0,1.4234932]